[Event "European Womens-ch 2025"]
[Site "Rhodes"]
[Date "2025.04.01"]
[Round "2.10"]
[White "Gevorgyan, Maria"]
[Black "Vega Gutierrez, Sabrina"]
[Result "1/2-1/2"]
[Annotator "RC"]
[ECO "B46"]
[WhiteElo "2234"]
[BlackElo "2380"]
[PlyCount "163"]
[EventDate "2025.03.29"]
[EventType "swiss"]
[EventCountry "GRE"]
[SourceTitle "playchess.com"]
[Source "ChessBase"]
[SourceQuality "1"]
[TimeControl "40/5400+30:1800+30"]

1. e4 {[%emt 0:00:05]} c5 {[%emt 0:00:06]} 2. Nf3 {[%emt 0:00:09]} e6 {[%emt 0:00:19]} 3. d4 {[%emt 0:00:12]} cxd4 {[%emt 0:00:08]} 4. Nxd4 {[%emt 0:00:04]} Nc6 {[%emt 0:04:47]} 5. Nc3 {[%emt 0:00:38]} a6 {[%emt 0:00:24]} 6. Be3 {[%emt 0:05:34]} Nf6 {[%emt 0:00:19]} 7. a3 {[%emt 0:03:22]} Be7 {[%emt 0:15:55]} 8. Be2 {[%emt 0:09:30]} O-O {[%emt 0:01:48]} 9. O-O {[%emt 0:05:24]} d6 {[%emt 0:01:38]} 10. f4 {[%emt 0:00:56]} Bd7 {[%emt 0:02:36]} 11. Qe1 {[%emt 0:02:24]} e5 {[%emt 0:17:24]} 12. fxe5 {[%emt 0:05:41]} dxe5 {[%emt 0:01:02]} 13. Nf5 {[%emt 0:00:45]} Bxf5 {[%emt 0:00:38]} 14. exf5 {[%emt 0:13:39]} e4 {[%emt 0:04:24]} 15. Rd1 {[%emt 0:09:46]} Qc7 {[%emt 0:01:52]} 16. g4 {[%emt 0:00:36]} h6 {[%emt 0:06:32]} 17. h4 {[%emt 0:03:09]} Ne5 {[%emt 0:07:34]} 18. g5 {[%emt 0:05:52]} Nfg4 {[%emt 0:02:56]} 19. Bxg4 {[%emt 0:02:58]} Nxg4 {[%emt 0:00:09]} 20. Bf4 {[%emt 0:00:03]} Qc5+ {[%emt 0:03:36]} 21. Kg2 {[%emt 0:02:50]} e3 {[%emt 0:05:21]} 22. Rd5 {[%emt 0:09:52]} Qb6 {[%emt 0:03:18]} 23. Kg3 {[%emt 0:01:29]} h5 {[%emt 0:00:40]} 24. Rd7 {[%emt 0:00:19]} Rfe8 {[%emt 0:03:12]} 25. Nd5 {[%emt 0:02:40]} Qc5 {[%emt 0:01:15]} 26. Nxe7+ {[%emt 0:02:00]} Rxe7 {[%emt 0:00:54]} 27. b4 {[%emt 0:00:11]} Qxc2 {[%emt 0:03:15]} 28. Rxe7 {[%emt 0:00:07]} Qh2+ {[%emt 0:00:23]} 29. Kf3 {[%emt 0:00:05]} Qh3+ {[%emt 0:00:20]} 30. Ke4 {[%emt 0:08:23]} Qg2+ {[%emt 0:00:09]} 31. Kd3 {[%emt 0:00:35]} Rd8+ {[%emt 0:06:52]} 32. Kc3 {[%emt 0:00:06]} Qc6+ {[%emt 0:01:10]} 33. Kb2 {[%emt 0:00:39]} Rd2+ {[%emt 0:01:02]} 34. Qxd2 {[%emt 0:00:05]} exd2 {[%emt 0:00:05]} 35. Rd1 {[%emt 0:05:05]} Qf3 {[%emt 0:05:21]} 36. Rxd2 {[%emt 0:00:01]} Qxf4 {[%emt 0:00:20]} 37. Rd8+ {[%emt 0:00:01]} Kh7 {[%emt 0:00:06]} 38. Rxf7 {[%emt 0:00:04]} Qe5+ {[%emt 0:00:46]} 39. Kb3 {[%emt 0:00:34]} Qg3+ {[%emt 0:00:52]} 40. Ka4 {[%emt 0:00:00]} b5+ {[%emt 0:00:00]} 41. Ka5 {[%emt 0:02:05]} Ne5 {[%emt 0:04:00]} 42. Rc7 {[%emt 0:15:48]} Qxh4 {[%emt 0:08:32]} 43. Rcc8 {[%emt 0:01:29]} Ng6 {[%emt 0:00:32]} 44. fxg6+ {[%emt 0:02:59]} Kxg6 {[%emt 0:00:03]} 45. Rd5 {[%emt 0:00:23]} Qe4 {[%emt 0:01:41]} 46. Rc6+ {[%emt 0:02:17]} Kh7 {[%emt 0:00:03]} 47. Rdc5 {[%emt 0:02:17]} h4 {[%emt 0:00:54]} 48. Rxa6 {[%emt 0:00:40]} h3 {[%emt 0:00:45]} 49. Rc8 {[%emt 0:02:58]} Qg2 {[%emt 0:02:01]} 50. g6+ {[%emt 0:00:43]} Kh6 {[%emt 0:00:04]} 51. Rb6 {[%emt 0:00:20]} Qf3 {[%emt 0:04:50]} 52. Kxb5 {[%emt 0:05:20]} Qd3+ {[%emt 0:07:46]} 53. Ka4 {[%emt 0:00:34]} Qd7+ {[%emt 0:00:36]} 54. Rbc6 {[%emt 0:00:33]} h2 {[%emt 0:00:57]} 55. Rh8+ {[%emt 0:00:44]} Kg5 {[%emt 0:00:03]} 56. Kb5 {[%emt 0:00:04]} Qd2 {[%emt 0:04:03]} 57. a4 {[%emt 0:00:37]} Qg2 {[%emt 0:01:18]} 58. a5 {[%emt 0:00:04]} h1=Q {[%emt 0:00:40]} 59. Rxh1 {[%emt 0:00:04]} Qxh1 {[%emt 0:00:07]} 60. a6 {[%emt 0:00:02]} Qa1 {[%emt 0:00:50]} 61. Kb6 {[%emt 0:02:54]} Qd4+ {[%emt 0:00:12]} 62. Rc5+ {[%emt 0:01:37]} Kxg6 {[%emt 0:00:30]} 63. b5 {[%emt 0:00:14]} Qd8+ {[%emt 0:00:55]} 64. Rc7 {[%emt 0:00:25]} Qb8+ {[%emt 0:01:08]} 65. Rb7 {[%emt 0:00:34]} Qd8+ {[%emt 0:00:29]} 66. Ka7 {[%emt 0:00:01]} Kf5 {[%emt 0:00:14]} 67. b6 {[%emt 0:00:14]} g5 {[%emt 0:00:34]} 68. Rc7 {[%emt 0:01:37]} g4 {[%emt 0:00:08]} 69. Rg7 {[%emt 0:00:53]} Qd4 {[%emt 0:00:13]} 70. Rg8 {[%emt 0:00:22]} Kf6 {[%emt 0:00:44]} 71. Rf8+ {[%emt 0:00:15]} Kg7 {[%emt 0:00:28]} 72. Rc8 {[%emt 0:00:05]} g3 {[%emt 0:00:11]} 73. Kb7 {[%emt 0:00:28]} g2 {[%emt 0:00:23]} 74. Rc1 {[%emt 0:00:17]} Qe3 {[%emt 0:00:55]} 75. Rc7+ {[%emt 0:00:50]} Kh6 {[%emt 0:00:42]} 76. a7 {[%emt 0:00:08]} Qe4+ {[%emt 0:00:59]} 77. Rc6+ {[%emt 0:00:35]} Qxc6+ 78. Kxc6 {[%emt 0:00:01]} g1=Q {[%emt 0:00:40]} 79. Kc7 {[%emt 0:00:16]} Qc5+ {[%emt 0:00:47]} 80. Kb7 {[%emt 0:00:04]} Qd5+ {[%emt 0:00:15]} 81. Kb8 {[%emt 0:00:05]} Qd8+ {[%emt 0:00:12]} 82. Kb7 {[%emt 0:00:04]} 1/2-1/2

[Event "European Womens-ch 2025"]
[Site "Rhodes"]
[Date "2025.04.01"]
[Round "2.11"]
[White "Maltsevskaya, Aleksandra"]
[Black "Dwilewicz, Katarzyna"]
[Result "1/2-1/2"]
[Annotator "RC"]
[ECO "C50"]
[WhiteElo "2376"]
[BlackElo "2203"]
[PlyCount "203"]
[EventDate "2025.03.29"]
[EventType "swiss"]
[EventCountry "GRE"]
[SourceTitle "playchess.com"]
[Source "ChessBase"]
[SourceQuality "1"]
[TimeControl "40/5400+30:1800+30"]

1. e4 {[%emt 0:00:09]} e5 {[%emt 0:00:15]} 2. Nf3 {[%emt 0:02:39]} Nc6 {[%emt 0:00:14]} 3. Bc4 {[%emt 0:00:28]} Bc5 {[%emt 0:00:29]} 4. O-O {[%emt 0:04:28]} Nf6 {[%emt 0:00:16]} 5. d3 {[%emt 0:01:36]} d6 {[%emt 0:01:42]} 6. h3 {[%emt 0:00:21]} a6 {[%emt 0:05:56]} 7. a4 {[%emt 0:01:27]} h6 {[%emt 0:00:27]} 8. c3 {[%emt 0:00:50]} Ba7 {[%emt 0:00:32]} 9. d4 {[%emt 0:07:41]} Qe7 {[%emt 0:03:17]} 10. Be3 {[%emt 0:06:15]} g5 {[%emt 0:05:35]} 11. dxe5 {[%emt 0:00:45]} dxe5 {[%emt 0:01:46]} 12. Bxa7 {[%emt 0:00:20]} Nxa7 {[%emt 0:06:27]} 13. Nbd2 {[%emt 0:06:03]} Rg8 {[%emt 0:06:51]} 14. Qb3 {[%emt 0:21:40]} Nc6 {[%emt 0:03:11]} 15. Bd5 {[%emt 0:01:05]} Nd7 {[%emt 0:13:55]} 16. Bxc6 {[%emt 0:05:34]} bxc6 {[%emt 0:00:33]} 17. Qc4 {[%emt 0:05:10]} Rg6 {[%emt 0:02:56]} 18. a5 {[%emt 0:00:22]} h5 {[%emt 0:02:40]} 19. b4 {[%emt 0:07:18]} g4 {[%emt 0:11:50]} 20. hxg4 {[%emt 0:00:08]} hxg4 {[%emt 0:00:11]} 21. Nh2 {[%emt 0:00:05]} Bb7 {[%emt 0:01:05]} 22. Rfd1 {[%emt 0:01:59]} g3 {[%emt 0:03:58]} 23. fxg3 {[%emt 0:00:06]} O-O-O {[%emt 0:03:22]} 24. Ndf1 {[%emt 0:00:39]} c5 {[%emt 0:06:26]} 25. Ra2 {[%emt 0:20:32]} Qe6 {[%emt 0:05:30]} 26. Qxe6 {[%emt 0:03:21]} Rxe6 {[%emt 0:00:10]} 27. Rf2 {[%emt 0:00:07]} cxb4 {[%emt 0:07:11]} 28. cxb4 {[%emt 0:00:06]} Nf6 {[%emt 0:01:02]} 29. Rxd8+ {[%emt 0:01:39]} Kxd8 {[%emt 0:00:01]} 30. Nd2 {[%emt 0:00:07]} Ke7 {[%emt 0:00:52]} 31. Nhf3 {[%emt 0:00:10]} Ng4 {[%emt 0:01:38]} 32. Rf1 {[%emt 0:00:18]} Rc6 {[%emt 0:01:22]} 33. Nb3 {[%emt 0:01:28]} Rc4 {[%emt 0:01:21]} 34. Nc5 {[%emt 0:00:11]} Rxb4 {[%emt 0:01:08]} 35. Rc1 {[%emt 0:00:20]} Kd6 {[%emt 0:02:30]} 36. Ng5 {[%emt 0:01:31]} f6 {[%emt 0:00:39]} 37. Nge6 {[%emt 0:00:07]} Bc8 {[%emt 0:01:05]} 38. Nxc7 {[%emt 0:00:26]} Rd4 {[%emt 0:00:27]} 39. Nd5 {[%emt 0:01:14]} Rd2 {[%emt 0:00:37]} 40. Nb6 {[%emt 0:00:00]} Be6 {[%emt 0:00:00]} 41. Nxa6 {[%emt 0:05:33]} Ne3 {[%emt 0:02:56]} 42. Nc5 {[%emt 0:03:15]} Rxg2+ {[%emt 0:05:54]} 43. Kh1 {[%emt 0:00:05]} Ra2 {[%emt 0:01:24]} 44. Nxe6 {[%emt 0:18:46]} Kxe6 {[%emt 0:00:09]} 45. Rc6+ {[%emt 0:05:15]} Kf7 {[%emt 0:07:36]} 46. Nd7 {[%emt 0:00:06]} Ng4 {[%emt 0:03:45]} 47. a6 {[%emt 0:00:20]} Nf2+ {[%emt 0:01:38]} 48. Kg2 {[%emt 0:01:11]} Ke7 {[%emt 0:02:38]} 49. Nb6 {[%emt 0:00:21]} Nxe4+ {[%emt 0:01:36]} 50. Kf3 {[%emt 0:00:24]} Nd2+ {[%emt 0:01:52]} 51. Kg4 {[%emt 0:00:15]} Kf7 {[%emt 0:02:13]} 52. Nd5 {[%emt 0:01:36]} Ne4 {[%emt 0:01:01]} 53. Rc4 {[%emt 0:00:36]} f5+ {[%emt 0:01:37]} 54. Kh3 {[%emt 0:00:09]} Ng5+ {[%emt 0:01:05]} 55. Kh4 {[%emt 0:00:05]} Nf3+ {[%emt 0:00:14]} 56. Kh5 {[%emt 0:00:06]} Rh2+ {[%emt 0:00:14]} 57. Rh4 {[%emt 0:00:05]} Nxh4 {[%emt 0:00:13]} 58. gxh4 {[%emt 0:00:05]} Ra2 {[%emt 0:01:20]} 59. Nb4 {[%emt 0:01:40]} Ra4 {[%emt 0:00:29]} 60. a7 {[%emt 0:00:29]} e4 {[%emt 0:00:51]} 61. Kg5 {[%emt 0:01:21]} Ke6 {[%emt 0:02:08]} 62. Kf4 {[%emt 0:00:29]} Rxa7 {[%emt 0:00:13]} 63. Nc2 {[%emt 0:00:04]} Kf6 {[%emt 0:00:32]} 64. Ne3 {[%emt 0:00:20]} Rh7 {[%emt 0:00:41]} 65. Nxf5 {[%emt 0:00:49]} Rh5 {[%emt 0:00:16]} 66. Nd6 {[%emt 0:00:15]} Rxh4+ {[%emt 0:00:14]} 67. Kg3 {[%emt 0:00:05]} Kg5 {[%emt 0:01:04]} 68. Nf7+ {[%emt 0:00:05]} Kh5 {[%emt 0:00:05]} 69. Ne5 {[%emt 0:00:20]} Rh1 {[%emt 0:00:40]} 70. Kf4 {[%emt 0:00:05]} Rh4+ {[%emt 0:00:37]} 71. Kg3 {[%emt 0:00:06]} e3 {[%emt 0:00:11]} 72. Nd3 {[%emt 0:00:32]} Kg5 {[%emt 0:01:00]} 73. Ne1 {[%emt 0:00:53]} Rh1 {[%emt 0:00:27]} 74. Nc2 {[%emt 0:00:19]} e2 {[%emt 0:00:15]} 75. Kf2 {[%emt 0:00:03]} Rh2+ {[%emt 0:00:50]} 76. Kf3 {[%emt 0:00:22]} Kh4 {[%emt 0:00:23]} 77. Ne1 {[%emt 0:00:13]} Kg5 {[%emt 0:00:24]} 78. Nc2 {[%emt 0:00:18]} Kf6 {[%emt 0:00:12]} 79. Ne1 {[%emt 0:03:14]} Ke5 {[%emt 0:00:43]} 80. Kg3 {[%emt 0:00:10]} Rh1 {[%emt 0:00:15]} 81. Kf2 {[%emt 0:00:04]} Ke4 {[%emt 0:00:30]} 82. Kxe2 {[%emt 0:00:29]} Rh2+ {[%emt 0:00:07]} 83. Kd1 {[%emt 0:01:31]} Rf2 {[%emt 0:01:09]} 84. Nc2 {[%emt 0:00:44]} Kd3 {[%emt 0:00:16]} 85. Ne1+ {[%emt 0:00:17]} Kc3 {[%emt 0:00:18]} 86. Kc1 {[%emt 0:00:04]} Re2 {[%emt 0:00:40]} 87. Kd1 {[%emt 0:00:08]} Rd2+ {[%emt 0:00:18]} 88. Kc1 {[%emt 0:00:05]} Rd8 {[%emt 0:00:29]} 89. Nf3 {[%emt 0:01:00]} Rf8 {[%emt 0:01:08]} 90. Ne1 {[%emt 0:00:05]} Rf2 {[%emt 0:00:15]} 91. Kd1 {[%emt 0:00:05]} Ra2 {[%emt 0:00:21]} 92. Nf3 {[%emt 0:00:05]} Kd3 {[%emt 0:00:20]} 93. Ne1+ {[%emt 0:00:05]} Kc3 {[%emt 0:00:14]} 94. Nf3 {[%emt 0:00:06]} Rf2 {[%emt 0:00:06]} 95. Ne1 {[%emt 0:00:06]} Rd2+ {[%emt 0:00:45]} 96. Kc1 {[%emt 0:00:07]} Re2 {[%emt 0:00:06]} 97. Kd1 {[%emt 0:00:04]} Re3 {[%emt 0:00:14]} 98. Ng2 {[%emt 0:00:15]} Rg3 {[%emt 0:00:12]} 99. Ne1 {[%emt 0:00:08]} Kd4 {[%emt 0:00:33]} 100. Ke2 {[%emt 0:00:12]} Ke4 {[%emt 0:00:07]} 101. Kd2 {[%emt 0:00:08]} Rh3 {[%emt 0:00:13]} 102. Nc2 {[%emt 0:00:06]} 1/2-1/2

[Event "European Womens-ch 2025"]
[Site "Rhodes"]
[Date "2025.04.01"]
[Round "2.12"]
[White "Zherebtsova, Alexandra"]
[Black "Atalik, Ekaterina"]
[Result "1-0"]
[Annotator "RC"]
[ECO "D73"]
[WhiteElo "2229"]
[BlackElo "2375"]
[PlyCount "91"]
[EventDate "2025.03.29"]
[EventType "swiss"]
[EventCountry "GRE"]
[SourceTitle "playchess.com"]
[Source "ChessBase"]
[SourceQuality "1"]
[TimeControl "40/5400+30:1800+30"]

1. d4 {[%emt 0:00:19]} d5 {[%emt 0:00:22]} 2. c4 {[%emt 0:00:50]} dxc4 {[%emt 0:00:18]} 3. Nf3 {[%emt 0:01:11]} c6 {[%emt 0:00:27]} 4. g3 {[%emt 0:04:28]} Nf6 {[%emt 0:02:18]} 5. Bg2 {[%emt 0:00:29]} g6 {[%emt 0:00:46]} 6. O-O {[%emt 0:12:59]} Bg7 {[%emt 0:00:05]} 7. a4 {[%emt 0:10:55]} O-O {[%emt 0:00:31]} 8. Na3 {[%emt 0:00:36]} Na6 {[%emt 0:03:04]} 9. Nxc4 {[%emt 0:03:01]} Be6 {[%emt 0:08:13]} 10. b3 {[%emt 0:11:22]} Bd5 {[%emt 0:07:56]} 11. Bb2 {[%emt 0:00:37]} Ne4 {[%emt 0:03:22]} 12. Nfe5 {[%emt 0:07:07]} Nd6 {[%emt 0:04:44]} 13. Nxd6 {[%emt 0:09:49]} exd6 {[%emt 0:01:55]} 14. e4 {[%emt 0:00:19]} Be6 {[%emt 0:02:51]} 15. Nd3 {[%emt 0:02:45]} Qb6 {[%emt 0:05:39]} 16. d5 {[%emt 0:06:02]} cxd5 {[%emt 0:06:32]} 17. exd5 {[%emt 0:01:41]} Bf5 {[%emt 0:00:51]} 18. a5 {[%emt 0:01:14]} Qd8 {[%emt 0:03:25]} 19. Bxg7 {[%emt 0:01:29]} Kxg7 {[%emt 0:00:30]} 20. Nb2 {[%emt 0:01:23]} Qf6 {[%emt 0:01:40]} 21. Nc4 {[%emt 0:01:07]} Rfe8 {[%emt 0:08:39]} 22. g4 {[%emt 0:03:58]} Bd7 {[%emt 0:01:17]} 23. g5 {[%emt 0:04:00]} Qxg5 {[%emt 0:05:34]} 24. Nxd6 {[%emt 0:00:28]} Re7 {[%emt 0:05:31]} 25. f4 {[%emt 0:02:07]} Qh4 {[%emt 0:04:13]} 26. Qd4+ {[%emt 0:04:06]} f6 {[%emt 0:05:13]} 27. Rf2 {[%emt 0:01:26]} Bh3 {[%emt 0:02:13]} 28. Bxh3 {[%emt 0:03:47]} Qxh3 {[%emt 0:00:05]} 29. Ne4 {[%emt 0:00:41]} Qf5 {[%emt 0:03:09]} 30. Ng3 {[%emt 0:01:13]} Qg4 {[%emt 0:00:28]} 31. d6 {[%emt 0:00:46]} Rf7 {[%emt 0:01:38]} 32. Re1 {[%emt 0:01:07]} Rd8 {[%emt 0:00:48]} 33. Rg2 {[%emt 0:00:20]} Nb8 {[%emt 0:02:52]} 34. Qxa7 {[%emt 0:01:35]} Kg8 {[%emt 0:03:20]} 35. Qb6 {[%emt 0:01:23]} Rfd7 {[%emt 0:04:05]} 36. Ne4 {[%emt 0:00:27]} Qh4 {[%emt 0:00:36]} 37. Qb4 {[%emt 0:00:46]} f5 {[%emt 0:01:59]} 38. Ng5 {[%emt 0:00:43]} Nc6 {[%emt 0:00:52]} 39. Qc4+ {[%emt 0:00:15]} Kg7 {[%emt 0:00:31]} 40. Qc3+ {[%emt 0:00:00]} Kg8 {[%emt 0:00:00]} 41. Rge2 {[%emt 0:10:13]} Rf8 {[%emt 0:01:30]} 42. Re8 {[%emt 0:07:06]} Rd8 {[%emt 0:01:05]} 43. R8e7 {[%emt 0:04:57]} Nxe7 {[%emt 0:03:52]} 44. dxe7 {[%emt 0:00:18]} Qxf4 {[%emt 0:06:08]} 45. exf8=Q+ {[%emt 0:01:21]} Rxf8 {[%emt 0:00:12]} 46. Ne6 {[%emt 0:01:55]} 1-0

[Event "European Womens-ch 2025"]
[Site "Rhodes"]
[Date "2025.04.01"]
[Round "2.13"]
[White "Rudzinska, Michalina"]
[Black "Socko, Monika"]
[Result "0-1"]
[Annotator "RC"]
[ECO "C07"]
[WhiteElo "2223"]
[BlackElo "2369"]
[PlyCount "97"]
[EventDate "2025.03.29"]
[EventType "swiss"]
[EventCountry "GRE"]
[SourceTitle "playchess.com"]
[Source "ChessBase"]
[SourceQuality "1"]
[TimeControl "40/5400+30:1800+30"]

1. e4 {[%emt 0:00:53]} e6 {[%emt 0:00:16]} 2. d4 {[%emt 0:00:18]} d5 {[%emt 0:00:05]} 3. Nd2 {[%emt 0:00:16]} c5 {[%emt 0:00:13]} 4. Ngf3 {[%emt 0:00:17]} Nf6 {[%emt 0:00:05]} 5. exd5 {[%emt 0:00:46]} Qxd5 {[%emt 0:00:05]} 6. Bc4 {[%emt 0:02:58]} Qd6 {[%emt 0:00:05]} 7. O-O {[%emt 0:03:56]} cxd4 {[%emt 0:00:05]} 8. Nb3 {[%emt 0:00:24]} Nc6 {[%emt 0:00:05]} 9. Nbxd4 {[%emt 0:00:18]} Nxd4 {[%emt 0:00:04]} 10. Nxd4 {[%emt 0:00:06]} Be7 {[%emt 0:00:04]} 11. Nb5 {[%emt 0:07:51]} Qxd1 {[%emt 0:00:05]} 12. Rxd1 {[%emt 0:00:06]} O-O {[%emt 0:00:03]} 13. Be3 {[%emt 0:08:09]} a6 {[%emt 0:00:13]} 14. Nd6 {[%emt 0:02:41]} Bxd6 {[%emt 0:09:55]} 15. Rxd6 {[%emt 0:00:07]} Bd7 {[%emt 0:00:13]} 16. Bd4 {[%emt 0:14:36]} Bc6 {[%emt 0:02:01]} 17. Bxf6 {[%emt 0:00:12]} gxf6 {[%emt 0:00:03]} 18. Rad1 {[%emt 0:00:08]} Rfc8 {[%emt 0:02:02]} 19. R1d4 {[%emt 0:02:38]} Kf8 {[%emt 0:06:49]} 20. c3 {[%emt 0:06:06]} Ke7 {[%emt 0:01:02]} 21. f4 {[%emt 0:03:08]} Rg8 {[%emt 0:25:35]} 22. g3 {[%emt 0:03:06]} h5 {[%emt 0:01:40]} 23. Be2 {[%emt 0:08:40]} h4 {[%emt 0:01:06]} 24. Kf2 {[%emt 0:06:57]} e5 {[%emt 0:07:43]} 25. fxe5 {[%emt 0:03:04]} fxe5 {[%emt 0:00:21]} 26. Rd1 {[%emt 0:11:32]} hxg3+ {[%emt 0:01:07]} 27. hxg3 {[%emt 0:00:05]} Rh8 {[%emt 0:01:47]} 28. Bf3 {[%emt 0:00:41]} e4 {[%emt 0:05:33]} 29. Be2 {[%emt 0:00:15]} Rh2+ {[%emt 0:02:19]} 30. Ke3 {[%emt 0:00:53]} Rg8 {[%emt 0:00:56]} 31. g4 {[%emt 0:02:08]} Rgh8 {[%emt 0:03:53]} 32. R6d2 {[%emt 0:02:10]} R8h3+ {[%emt 0:04:33]} 33. Kd4 {[%emt 0:00:39]} Rg3 {[%emt 0:00:57]} 34. Bc4 {[%emt 0:04:31]} Rxd2+ {[%emt 0:03:44]} 35. Rxd2 {[%emt 0:00:05]} Rxg4 {[%emt 0:00:05]} 36. Bd5 {[%emt 0:04:18]} Bxd5 {[%emt 0:03:37]} 37. Kxd5 {[%emt 0:00:05]} Kf6 {[%emt 0:00:01]} 38. Rf2+ {[%emt 0:01:22]} Kg6 {[%emt 0:00:03]} 39. Ke5 {[%emt 0:00:44]} e3 {[%emt 0:07:24]} 40. Re2 {[%emt 0:00:00]} f6+ {[%emt 0:00:00]} 41. Kd5 {[%emt 0:04:00]} Rg3 {[%emt 0:00:10]} 42. Ke4 {[%emt 0:07:28]} Kg5 {[%emt 0:02:36]} 43. a4 {[%emt 0:08:46]} f5+ {[%emt 0:02:16]} 44. Kd3 {[%emt 0:00:53]} Kg4 {[%emt 0:01:57]} 45. b4 {[%emt 0:05:17]} f4 {[%emt 0:00:26]} 46. Re1 {[%emt 0:00:07]} Rg2 {[%emt 0:02:26]} 47. Ke4 {[%emt 0:02:14]} e2 {[%emt 0:01:41]} 48. b5 {[%emt 0:00:58]} f3 {[%emt 0:01:45]} 49. Kd4 {[%emt 0:08:08]} 0-1

[Event "European Womens-ch 2025"]
[Site "Rhodes"]
[Date "2025.04.01"]
[Round "2.14"]
[White "Roebers, Eline"]
[Black "Mgeladze, Kesaria"]
[Result "1-0"]
[Annotator "RC"]
[ECO "E73"]
[WhiteElo "2367"]
[BlackElo "2200"]
[PlyCount "65"]
[EventDate "2025.03.29"]
[EventType "swiss"]
[EventCountry "GRE"]
[SourceTitle "playchess.com"]
[Source "ChessBase"]
[SourceQuality "1"]
[TimeControl "40/5400+30:1800+30"]

1. d4 {[%emt 0:00:01]} Nf6 {[%emt 0:00:11]} 2. c4 {[%emt 0:00:05]} g6 {[%emt 0:00:14]} 3. Nc3 {[%emt 0:00:03]} Bg7 {[%emt 0:00:10]} 4. e4 {[%emt 0:00:02]} d6 {[%emt 0:00:08]} 5. Be2 {[%emt 0:00:03]} O-O {[%emt 0:00:26]} 6. Be3 {[%emt 0:00:03]} c5 {[%emt 0:00:55]} 7. d5 {[%emt 0:00:03]} e6 {[%emt 0:01:16]} 8. Nf3 {[%emt 0:00:14]} exd5 9. cxd5 {[%emt 0:00:06]} Nbd7 {[%emt 0:05:45]} 10. Nd2 {[%emt 0:00:04]} Ne5 {[%emt 0:01:02]} 11. h3 {[%emt 0:00:03]} Ne8 {[%emt 0:00:33]} 12. O-O {[%emt 0:00:05]} f5 {[%emt 0:00:21]} 13. f4 {[%emt 0:00:03]} Nf7 {[%emt 0:00:13]} 14. Bf2 {[%emt 0:00:02]} Nh6 {[%emt 0:17:18]} 15. e5 {[%emt 0:13:04]} dxe5 {[%emt 0:02:49]} 16. Bxc5 {[%emt 0:00:07]} Nd6 {[%emt 0:06:12]} 17. Nc4 {[%emt 0:07:52]} Nhf7 {[%emt 0:10:33]} 18. fxe5 {[%emt 0:00:12]} Bxe5 {[%emt 0:00:22]} 19. Nxe5 {[%emt 0:01:04]} Nxe5 {[%emt 0:01:40]} 20. Qd4 {[%emt 0:00:16]} Nef7 {[%emt 0:12:35]} 21. Bxa7 {[%emt 0:00:40]} Re8 {[%emt 0:10:48]} 22. Rae1 {[%emt 0:06:10]} Bd7 {[%emt 0:03:59]} 23. Bd3 {[%emt 0:04:41]} Qg5 {[%emt 0:03:27]} 24. Rxe8+ {[%emt 0:04:54]} Rxe8 {[%emt 0:00:12]} 25. Qf4 {[%emt 0:01:38]} Qxf4 {[%emt 0:06:59]} 26. Rxf4 {[%emt 0:00:04]} Ne5 {[%emt 0:09:59]} 27. Bf1 {[%emt 0:00:22]} g5 {[%emt 0:05:53]} 28. Rb4 {[%emt 1:02:29]} f4 {[%emt 0:00:00]} 29. Bc5 {[%emt 0:00:00]} Nf5 {[%emt 0:00:00]} 30. Ne4 {[%emt 0:00:00]} Kg7 {[%emt 0:00:00]} 31. Rxb7 {[%emt 0:00:00]} h6 {[%emt 0:00:00]} 32. Nd6 {[%emt 0:00:00]} Ng3 {[%emt 0:00:00]} 33. Nxe8+ {[%emt 0:00:00]} 1-0